[Event "34th GER-ch Seniors-50 2022"]
[Site "Magdeburg"]
[Date "2022.08.14"]
[Round "3.2"]
[White "Juegel, Marcel"]
[Black "Raitza, Olaf"]
[Result "1/2-1/2"]
[ECO "D00"]
[WhiteElo "2126"]
[BlackElo "2289"]
[Annotator "TA"]
[PlyCount "61"]
[EventDate "2022.08.12"]
[EventType "swiss"]
[EventCountry "GER"]
[SourceTitle "playchess.com"]
[Source "ChessBase"]
[SourceQuality "1"]
[TimeControl "40/5400+30:1800+30"]

{[%evp 9,61,-14,-12,-24,-21,-23,0,16,7,-12,-22,-23,6,0,20,0,9,-16,0,-42,-32,-25,-30,-47,-20,-83,-82,-96,-93,-98,-110,-135,-31,-51,67,-18,-12,-29,22,24,31,25,82,-40,52,56,52,47,83,67,273,277,263,253]} 1. d4 {[%emt 0:02:10]} Nf6 {[%emt 0:00:06]} 2. Nc3 {[%emt 0:00:23]} d5 {[%emt 0:00:13]} 3. Bf4 {[%emt 0:00:18]} e6 {[%emt 0:00:10]} 4. Nb5 {[%emt 0:00:48]} Na6 {[%emt 0:00:13]} 5. e3 {[%emt 0:00:22]} Be7 {[%emt 0:01:21]} 6. Bd3 {[%emt 0:01:09] D00: 1 d4 d5: Unusual lines.} c6 {[%emt 0:00:32]} 7. Nc3 {[%emt 0:00:08]} Qb6 {[%emt 0:00:49]} 8. a3 {[%emt 0:04:16] The position is equal.} c5 {[%emt 0:03:38] [#]} (8... Qxb2 $2 9. Na4 Qxa1 10. Qxa1 $18) 9. Ra2 $146 {[%emt 0:08:37]} ({Predecessor:} 9. Rb1 O-O 10. Nf3 Bd7 11. Ne5 c4 12. Be2 Rfd8 13. Bg5 Nc7 14. Bh5 Be8 15. Ng4 {1-0 (76) Artemiev,V (2692)-Radjabov,T (2742) Tbilisi 2017}) 9... Bd7 {[%emt 0:05:58]} 10. Nf3 {[%emt 0:00:32]} c4 {[%emt 0:19:37]} 11. Be2 {[%emt 0:00:36]} Qa5 {[%emt 0:00:13]} 12. Nd2 {[%emt 0:06:57]} b5 {[%emt 0:10:18]} 13. Qa1 {[%emt 0:05:52]} Qb6 {[%emt 0:01:43]} 14. Qc1 {[%emt 0:14:54]} Bc6 {[%emt 0:09:53]} 15. O-O {[%emt 0:07:29]} O-O {[%emt 0:04:49]} 16. Bf3 {[%emt 0:02:25]} Nc7 {[%emt 0:03:05]} 17. Qe1 {[%emt 0:11:16]} (17. b3 $11 {keeps the balance.}) 17... a5 $17 {[%emt 0:02:20]} 18. Bd1 {[%emt 0:04:38]} b4 {[%emt 0:01:11]} 19. Ncb1 {[%emt 0:04:08]} Nb5 {[%emt 0:05:13]} 20. a4 {[%emt 0:01:26]} c3 {[%emt 0:05:37]} (20... Nd6 $17 21. h3 Nd7) 21. Nf3 $15 {[%emt 0:01:09]} Ne4 {[%emt 0:05:45]} 22. Ne5 {[%emt 0:02:27]} ({White should play} 22. axb5 $14 Bxb5 23. Be2 (23. bxc3 Bxf1 24. Qxf1 bxc3 $15)) 22... Nbd6 $11 {[%emt 0:03:06] next ...cxb2 is good for Black.} 23. f3 {[%emt 0:00:33]} Nd2 {[%emt 0:03:49]} (23... Nf6 $142) 24. Nxd2 {[%emt 0:00:58]} cxd2 {[%emt 0:00:02]} 25. Qxd2 {[%emt 0:00:35]} Nc4 {[%emt 0:01:44]} (25... Rac8 $11) 26. Qd3 {[%emt 0:03:30] [#]} (26. Nxc4 $16 dxc4 27. c3) 26... f6 {[%emt 0:00:56]} (26... Bxa4 $1 $15 27. Rxa4 Nxb2) 27. Nxc6 $14 {[%emt 0:01:26]} Qxc6 {[%emt 0:00:12]} 28. c3 {[%emt 0:02:41]} e5 {[%emt 0:00:52]} 29. Bg3 {[%emt 0:00:29] And now b3 would win.} e4 $2 {[%emt 0:01:13]} ({Black should try} 29... bxc3 $14 30. bxc3 Rfc8) 30. fxe4 $18 {[%emt 0:00:25]} dxe4 {[%emt 0:00:03]} 31. Qe2 {[%emt 0:01:25][%mdl 32768] Weighted Error Value: White=0.26 (precise) /Black=0.46. An unexpected result.} 1/2-1/2

[Event "34th GER-ch Seniors-50 2022"]
[Site "Magdeburg"]
[Date "2022.08.14"]
[Round "3.3"]
[White "Wenner, Tobias"]
[Black "Wacker, Peter"]
[Result "0-1"]
[ECO "A09"]
[WhiteElo "2099"]
[BlackElo "2263"]
[Annotator "TA"]
[PlyCount "92"]
[EventDate "2022.08.12"]
[EventType "swiss"]
[EventCountry "GER"]
[SourceTitle "playchess.com"]
[Source "ChessBase"]
[SourceQuality "1"]
[TimeControl "40/5400+30:1800+30"]

{[%evp 9,92,8,5,0,0,-39,-14,-54,-54,-63,-63,-66,-62,-60,-66,-66,-54,-67,-52,-41,-24,-71,-35,-39,-45,-67,-18,-83,-81,-84,-72,-134,-103,-155,-79,-135,-133,-133,-135,-137,-138,-131,-134,-137,-121,-151,-154,-162,-169,-222,-162,-162,-162,-168,-162,-162,-158,-150,-147,-153,-150,-152,-152,-150,-157,-292,-290,-390,-308,-307,-307,-802,-732,-704,-662,-5214,-2147,-1841,-1363,-2421,-2386,-29986,-29987,-29984,-29984]} 1. Nf3 {[%emt 0:00:04]} d5 {[%emt 0:00:10]} 2. c4 {[%emt 0:00:05]} d4 {[%emt 0:00:15]} 3. b4 {[%emt 0:00:08]} Bg4 {[%emt 0:00:22]} 4. Qb3 {[%emt 0:00:11]} Bxf3 {[%emt 0:00:43]} 5. Qxf3 {[%emt 0:00:09]} c6 {[%emt 0:00:25]} 6. Qb3 {[%emt 0:02:24] A09: Réti Opening: 1 Nf3 d5 2 c4.} e5 {[%emt 0:01:18] [#]} 7. d3 $146 {[%emt 0:00:32]} ({Predecessor:} 7. g3 Nd7 8. Bg2 a5 9. b5 Nc5 10. Qd1 Qc7 11. O-O Nf6 12. d3 Rd8 13. a4 {0-1 (39) Colas,J (2288)-Sorensen,H (2395) Chess.com INT 2020}) 7... a5 {[%emt 0:03:40]} 8. bxa5 {[%emt 0:06:06] The position is equal.} Qxa5+ {[%emt 0:03:37]} 9. Bd2 {[%emt 0:00:10]} Qc7 {[%emt 0:00:51]} 10. g3 {[%emt 0:00:55]} Na6 {[%emt 0:00:46]} 11. Bg2 {[%emt 0:01:49]} Nf6 {[%emt 0:01:51]} 12. a4 {[%emt 0:03:05]} Bd6 {[%emt 0:01:00]} 13. a5 {[%emt 0:03:10]} O-O {[%emt 0:00:30]} 14. O-O {[%emt 0:00:08]} Rfe8 {[%emt 0:02:57]} 15. e3 {[%emt 0:12:50]} (15. Qb2 $11 {feels stronger.}) 15... dxe3 {[%emt 0:04:24]} 16. Bxe3 {[%emt 0:02:42]} Bc5 {[%emt 0:07:13]} 17. Nd2 {[%emt 0:14:18]} Red8 {[%emt 0:16:05]} (17... Bxe3 $1 $15 {is more appropriate.} 18. fxe3 Red8) 18. Ne4 {[%emt 0:06:37]} (18. Bg5 $11 {keeps the balance.}) 18... Nxe4 $17 {[%emt 0:02:36] White is on the road to losing.} 19. dxe4 {[%emt 0:01:16]} Bd4 {[%emt 0:02:52]} 20. Ra3 {[%emt 0:07:01]} (20. Bxd4 $142 exd4 21. Qb6) 20... Bxe3 {[%emt 0:07:34]} 21. fxe3 {[%emt 0:01:44]} (21. Qxe3 $142 c5 22. Qb3) 21... c5 {[%emt 0:01:34]} (21... Rd2 $142 22. Qb6 Qe7) 22. Rd1 {[%emt 0:06:41]} (22. Qb6 $142) 22... Rxd1+ {[%emt 0:02:15]} 23. Qxd1 {[%emt 0:00:01]} Nb4 {[%emt 0:00:08] Against Rd3} 24. Bh3 {[%emt 0:04:14]} Rd8 {[%emt 0:00:50]} ({Weaker is} 24... Rxa5 25. Rxa5 Qxa5 26. Bc8 $15) 25. Qe2 {[%emt 0:00:47]} g6 {[%emt 0:03:08]} 26. Ra1 {[%emt 0:00:48]} Rd6 {[%emt 0:00:28]} 27. Qg4 {[%emt 0:02:05]} Kg7 {[%emt 0:04:03]} ({Not} 27... Nc2 28. Rc1 Nb4 29. Qc8+ Qxc8 30. Bxc8 $15) 28. Qc8 {[%emt 0:02:24] [#]} Qe7 {[%emt 0:00:22] And now ...Nc2 would win.} 29. Rf1 {[%emt 0:05:52]} (29. Qg4 $142) 29... Rd8 {[%emt 0:01:43]} 30. Qg4 {[%emt 0:00:12]} Nc6 {[%emt 0:01:35]} 31. Rd1 {[%emt 0:03:18]} Nxa5 {[%emt 0:01:34]} 32. Bf1 {[%emt 0:01:50]} Nc6 {[%emt 0:01:50]} 33. Qe2 {[%emt 0:01:50]} Nb4 {[%emt 0:04:33]} 34. Rd2 {[%emt 0:01:27]} Qc7 {[%emt 0:07:33] Black is more active.} 35. Qd1 {[%emt 0:00:25]} Rxd2 {[%emt 0:00:05]} 36. Qxd2 {[%emt 0:00:02][%mdl 4096] Endgame KQB-KQN} Qc6 {[%emt 0:00:16]} 37. Kf2 {[%emt 0:03:42]} (37. Qg2 $17 {is a better defense.}) 37... Qxe4 $19 {[%emt 0:05:25]} 38. Qd6 {[%emt 0:00:15]} Qf5+ {[%emt 0:01:37]} 39. Kg1 {[%emt 0:03:18]} e4 {[%emt 0:00:39][%cal Be5e4,Be4d3][%mdl 32] [#] White must now prevent ...Nd3.} 40. Qc7 $2 {[%emt 0:02:05]} (40. Qf4) 40... Nd3 {[%emt 0:03:58]} 41. Bxd3 {[%emt 0:30:22]} exd3 {[%emt 0:30:21]} 42. Qxb7 {[%emt 0:00:05] KQ-KQ} Qg4 {[%emt 0:06:06]} (42... Qe5 $142 43. Kf2 Qa1) 43. Qb2+ {[%emt 0:00:00]} f6 {[%emt 0:00:00]} 44. Qb7+ {[%emt 0:00:00]} Kh6 {[%emt 0:00:00] ( -> ...d2)} 45. Qd5 {[%emt 0:00:00]} Qd1+ {[%emt 0:00:00]} 46. Kg2 {[%emt 0:00:00]} Qe2+ {[%emt 0:00:00] Weighted Error Value: White=0.73/Black=0.21 (precise)} 0-1

[Event "34th GER-ch Seniors-50 2022"]
[Site "Magdeburg"]
[Date "2022.08.14"]
[Round "3.4"]
[White "Koscielski, Janusz"]
[Black "Reddmann, Hauke"]
[Result "1/2-1/2"]
[ECO "B22"]
[WhiteElo "2255"]
[BlackElo "2181"]
[Annotator "TA"]
[PlyCount "68"]
[EventDate "2022.08.12"]
[EventType "swiss"]
[EventCountry "GER"]
[SourceTitle "playchess.com"]
[Source "ChessBase"]
[SourceQuality "1"]
[TimeControl "40/5400+30:1800+30"]

{[%evp 9,68,19,29,18,23,19,33,26,18,9,25,21,17,0,12,0,32,0,12,7,33,0,0,0,84,41,54,58,70,60,44,33,35,26,34,32,35,29,31,29,39,22,41,28,41,25,43,37,38,35,38,6,9,9,14,21,23,16,25,0,114]} 1. e4 {[%emt 0:00:05][%cal Be2e4,Be4e5][%mdl 32]} c5 {[%emt 0:00:02]} 2. c3 {[%emt 0:00:07]} Nf6 {[%emt 0:00:29]} 3. e5 {[%emt 0:00:07]} Nd5 {[%emt 0:00:04]} 4. Bc4 {[%emt 0:00:08]} Nb6 {[%emt 0:01:22]} 5. Bb3 {[%emt 0:00:14]} d5 {[%emt 0:08:15]} 6. exd6 {[%emt 0:00:11] B22: Sicilian: 2 c3.} exd6 {[%emt 0:02:41]} 7. d4 {[%emt 0:12:38]} Nc6 {[%emt 0:00:58] [#]} 8. dxc5 $146 {[%emt 0:04:15] White is slightly better.} (8. Nf3 {keeps more tension.} Bf5 9. O-O Be7 10. Re1) ({Predecessor:} 8. Ne2 Bf5 9. Ng3 Bg6 10. O-O Be7 11. d5 Na5 12. f4 Nxb3 13. axb3 Bxb1 14. f5 {0-1 (57) Lyell,M (2193)-Vasiesiu,D (2384) Corund 2016}) 8... dxc5 {[%emt 0:00:07]} 9. Qxd8+ {[%emt 0:00:49]} (9. Qe2+ {looks sharper.} Be7 10. Nf3 Bf5 11. Bc2) 9... Nxd8 {[%emt 0:00:14]} 10. Nf3 {[%emt 0:04:42]} Be6 {[%emt 0:01:50]} 11. O-O {[%emt 0:04:27]} Be7 {[%emt 0:02:27]} 12. Re1 {[%emt 0:09:41]} O-O {[%emt 0:04:00]} 13. Nbd2 {[%emt 0:13:01]} h6 {[%emt 0:04:40]} 14. a4 {[%emt 0:08:06]} a5 {[%emt 0:09:19]} 15. Ne5 {[%emt 0:07:29]} Bxb3 {[%emt 0:08:57]} 16. Nxb3 {[%emt 0:00:17][%cal Oe5d7]} Ne6 {[%emt 0:00:28]} (16... Bd6 $11) 17. Nd2 {[%emt 0:07:31] White is more active.} Rfd8 {[%emt 0:05:10]} 18. Ndc4 {[%emt 0:00:44]} Nd5 {[%emt 0:01:42]} 19. g3 {[%emt 0:02:23]} Bd6 {[%emt 0:01:32]} 20. Nf3 {[%emt 0:02:50]} Bc7 {[%emt 0:01:47]} 21. Kf1 {[%emt 0:00:48]} Nb6 {[%emt 0:03:34]} 22. Nxb6 {[%emt 0:01:03]} Bxb6 {[%emt 0:00:02]} 23. Ne5 {[%emt 0:00:17]} Bc7 {[%emt 0:02:25]} 24. Nc4 {[%emt 0:00:15]} h5 {[%emt 0:01:36]} 25. Be3 {[%emt 0:04:43]} Kf8 {[%emt 0:00:26]} 26. Ke2 {[%emt 0:03:41]} b6 {[%emt 0:00:33]} 27. h3 {[%emt 0:01:28]} Rd5 {[%emt 0:01:51]} 28. Red1 {[%emt 0:00:36]} Rxd1 {[%emt 0:00:48]} 29. Rxd1 {[%emt 0:00:17]} Ke7 {[%emt 0:00:09]} 30. Na3 {[%emt 0:02:41]} Rd8 {[%emt 0:01:32]} 31. Rd3 {[%emt 0:01:59]} g6 {[%emt 0:01:20]} 32. Nb5 {[%emt 0:03:59]} Rxd3 {[%emt 0:02:26]} 33. Kxd3 {[%emt 0:00:01]} Kd7 {[%emt 0:00:28]} 34. Na3 {[%emt 0:02:58]} Ke8 {[%emt 0:34:16] Weighted Error Value: White=0.10 (very precise) /Black=0.14 (very precise)} (34... f5 $11 {keeps the balance.}) 1/2-1/2

[Event "34th GER-ch Seniors-50 2022"]
[Site "Magdeburg"]
[Date "2022.08.14"]
[Round "3.5"]
[White "Krause, Ullrich"]
[Black "Lindam, Ingo"]
[Result "1/2-1/2"]
[ECO "E69"]
[WhiteElo "2190"]
[BlackElo "2130"]
[Annotator "TA"]
[PlyCount "30"]
[EventDate "2022.08.12"]
[EventType "swiss"]
[EventCountry "GER"]
[SourceTitle "playchess.com"]
[Source "ChessBase"]
[SourceQuality "1"]
[TimeControl "40/5400+30:1800+30"]

{[%evp 25,30,0,17,0,0,0,0]} 1. Nf3 {[%emt 0:00:04]} Nf6 {[%emt 0:00:05]} 2. c4 {[%emt 0:00:08]} g6 {[%emt 0:00:10]} 3. g3 {[%emt 0:00:06]} Bg7 {[%emt 0:00:31]} 4. d4 {[%emt 0:00:05]} O-O {[%emt 0:00:41]} 5. Bg2 {[%emt 0:00:04]} d6 {[%emt 0:00:13]} 6. O-O {[%emt 0:00:07]} Nbd7 {[%emt 0:00:08]} 7. Nc3 {[%emt 0:00:07]} e5 {[%emt 0:00:13]} 8. e4 {[%emt 0:00:06]} c6 {[%emt 0:00:20]} 9. h3 {[%emt 1:34:13]} Qb6 {[%emt 0:00:17]} 10. Rb1 {[%emt 0:00:00]} exd4 {[%emt 0:02:26]} 11. Nxd4 {[%emt 0:00:00]} Re8 {[%emt 0:06:19]} 12. Be3 {[%emt 0:00:00]} Qb4 {[%emt 0:05:22]} 13. Re1 {[%emt 0:00:00]} Qxc4 {[%emt 0:07:41] The position is equal.} 14. Bf1 {[%emt 0:00:00] E69: King's Indian: Fianchetto: 6...Nbd7 7 0-0 e5 8 e4 c6 9 h3.} Qb4 {[%emt 0:01:17] [#]} 15. Nb3 $146 {[%emt 0:00:00] [#] Threatens to win with a3.} ({Predecessor:} 15. Nc2 Qa5 16. Qxd6 Ne5 17. Kg2 Be6 18. b4 Qd8 19. Qxd8 Rexd8 20. Red1 Nc4 21. Bd4 Nd7 22. Bxg7 Kxg7 {1-0 (64) Grunberg,M (2432)-Burlacu,B (2259) Brasov 2004}) 15... d5 {[%emt 0:13:10] An uneventful encounter.  Weighted Error Value: White=0.07 (flawless) /Black=0.00 (flawless)} 1/2-1/2

[Event "34th GER-ch Seniors-50 2022"]
[Site "Magdeburg"]
[Date "2022.08.14"]
[Round "3.6"]
[White "Puschendorf, Steffen"]
[Black "Hirn, Oskar"]
[Result "0-1"]
[ECO "E09"]
[WhiteElo "2107"]
[BlackElo "2188"]
[Annotator "TA"]
[PlyCount "126"]
[EventDate "2022.08.12"]
[EventType "swiss"]
[EventCountry "GER"]
[SourceTitle "playchess.com"]
[Source "ChessBase"]
[SourceQuality "1"]
[TimeControl "40/5400+30:1800+30"]

{[%evp 24,126,51,42,60,53,61,18,18,10,13,6,10,0,5,0,0,0,2,0,0,0,5,3,36,37,39,33,38,22,58,61,66,62,66,64,67,66,70,0,65,62,72,25,29,29,64,47,80,64,74,84,117,68,82,60,111,107,107,107,571,45,86,0,0,-99,-124,-620,-327,-302,-247,-277,-172,-632,-420,-375,-334,-362,-381,-2376,-2351,-1844,-1454,-12834,-10426,-12834,-12831,-12831,-12745,-1823,0,-1947,-1877,-1764,-1730,-1556,-1502,-998,0,-29991,0,0,0,-29992,-29993]} 1. d4 {[%emt 0:00:02]} Nf6 {[%emt 0:00:56]} 2. c4 {[%emt 0:00:06]} e6 {[%emt 0:00:07]} 3. g3 {[%emt 0:00:09]} d5 {[%emt 0:04:30]} 4. Nf3 {[%emt 0:00:12]} c6 {[%emt 0:00:26]} 5. Qc2 {[%emt 0:01:06]} Nbd7 {[%emt 0:00:26]} 6. Bg2 {[%emt 0:00:22]} Be7 {[%emt 0:01:58]} 7. O-O {[%emt 0:00:29]} O-O {[%emt 0:00:17]} 8. Nbd2 {[%emt 0:03:11]} b6 {[%emt 0:08:31]} 9. e4 {[%emt 0:01:13]} dxe4 {[%emt 0:00:27]} 10. Nxe4 {[%emt 0:00:59]} Nxe4 {[%emt 0:03:00]} 11. Qxe4 {[%emt 0:00:09]} Bb7 {[%emt 0:00:23]} 12. Rd1 {[%emt 0:03:30]} Re8 {[%emt 0:09:41]} 13. Bf4 {[%emt 0:05:39]} Qc8 {[%emt 0:04:51] E09: Closed Catalan: Main Line: 7 Qc2 c6 8 Nbd2.} 14. Ne5 {[%emt 0:16:35]} Nxe5 {[%emt 0:01:32] [#]} 15. dxe5 $146 {[%emt 0:04:18]} ({Much weaker is} 15. Qxe5 c5 $11) ({Predecessor:} 15. Bxe5 Rd8 16. Rac1 Rd7 17. h4 Qf8 18. h5 Rad8 19. h6 g6 20. Bg7 Qe8 21. Bh3 {1-0 (49) Socko,B (2583)-Dubinski,M (2275) Poland 2017}) 15... Rb8 {[%emt 0:01:34] The position is equal.} 16. Qc2 {[%emt 0:07:37]} c5 {[%emt 0:01:58]} 17. Be4 {[%emt 0:00:23]} h6 {[%emt 0:03:00]} 18. h4 {[%emt 0:01:28]} Qc7 {[%emt 0:03:24]} 19. h5 {[%emt 0:02:34]} Red8 {[%emt 0:00:26]} 20. Qe2 {[%emt 0:02:00]} Rd4 {[%emt 0:04:17]} 21. Rxd4 {[%emt 0:01:10]} cxd4 {[%emt 0:00:02]} 22. b3 {[%emt 0:02:51]} Rd8 {[%emt 0:10:28]} 23. Rd1 {[%emt 0:03:38]} Rd7 {[%emt 0:06:26]} 24. Qf3 {[%emt 0:03:18]} Bxe4 {[%emt 0:00:26]} 25. Qxe4 {[%emt 0:00:02]} Bc5 {[%emt 0:03:32]} 26. Rd3 {[%emt 0:03:06]} a5 {[%emt 0:02:59][%cal Oa5a4]} 27. a4 {[%emt 0:00:43]} Qd8 {[%emt 0:01:12]} 28. Bc1 {[%emt 0:04:25]} Kh8 {[%emt 0:00:55]} 29. Kg2 {[%emt 0:02:33]} Qc7 {[%emt 0:02:26]} 30. Kf3 {[%emt 0:03:21]} Kg8 {[%emt 0:00:34]} 31. Kg2 {[%emt 0:02:24]} Kh8 $1 {[%emt 0:00:02]} 32. Kh3 {[%emt 0:01:41]} Kg8 {[%emt 0:00:17]} 33. f4 {[%emt 0:02:22]} ({White should play} 33. Bf4 $16) 33... Qd8 {[%emt 0:02:28]} 34. g4 {[%emt 0:01:38]} Kh8 {[%emt 0:01:41]} 35. Bd2 {[%emt 0:06:17]} Be7 {[%emt 0:00:30]} 36. Be1 {[%emt 0:02:15]} Bc5 {[%emt 0:00:19]} 37. Bh4 {[%emt 0:04:16]} Qc8 {[%emt 0:04:26]} 38. g5 {[%emt 0:03:59]} (38. f5 $16) 38... hxg5 $14 {[%emt 0:01:24]} 39. fxg5 {[%emt 0:01:06]} Qe8 {[%emt 0:01:30]} ({Black should try} 39... g6 $1 $14) 40. g6 $16 {[%emt 0:03:14]} Kg8 {[%emt 0:01:39]} 41. Rg3 {[%emt 0:17:02][%cal Oh4f6]} Be7 {[%emt 0:06:40][%mdl 8192] [#] Against Bf6} (41... fxg6 $16 {is tougher.} 42. hxg6 d3 43. Rxd3 Rxd3+ 44. Qxd3 Qf8) 42. Bxe7 $2 {[%emt 0:09:40]} ({White must play} 42. Bf6 $1 $18 {[%mdl 512]} fxg6 43. Rxg6) 42... Qxe7 $18 {[%emt 0:00:03][%mdl 4096] Endgame [#] KQR-KQR} 43. Rd3 {[%emt 0:00:29]} (43. Kg4 $1 $16) 43... Qg5 $11 {[%emt 0:01:26]} 44. Qg4 {[%emt 0:02:39]} (44. Rxd4 $11 {remains equal.} Qxh5+ 45. Kg2 Qg5+ 46. Kf2 Rxd4 47. gxf7+ Kxf7 48. Qxd4) 44... Qxe5 $17 {[%emt 0:00:19]} 45. gxf7+ {[%emt 0:00:44][%mdl 8192]} (45. Qf3 $17 Kf8 46. gxf7) 45... Kxf7 {[%emt 0:01:58]} 46. Qg6+ {[%emt 0:01:26]} Ke7 {[%emt 0:00:34]} 47. Rf3 {[%emt 0:01:19]} Kd6 {[%emt 0:00:24] aiming for ...Rd8.} 48. Kh4 $2 {[%emt 0:00:36]} (48. Qe8) 48... Qe1+ {[%emt 0:01:37]} ({Wrong is} 48... Qh2+ $2 49. Kg4 $19) 49. Kg4 {[%emt 0:00:32]} Qg1+ {[%emt 0:01:01]} 50. Kf4 {[%emt 0:00:37]} Qh2+ {[%emt 0:07:24]} 51. Ke4 $2 {[%emt 0:01:38]} (51. Kg4 Kc7 52. Rd3) 51... Qe2+ $19 {[%emt 0:00:37]} 52. Kf4 {[%emt 0:00:15]} Kc7 {[%emt 0:02:18]} 53. Rd3 {[%emt 0:01:16]} e5+ {[%emt 0:00:38][%cal Be6e5,Be5e4][%mdl 32]} 54. Kg5 {[%emt 0:00:58]} e4 {[%emt 0:01:57]} 55. Rg3 {[%emt 0:00:11]} Qf2 {[%emt 0:02:29]} 56. Kg4 {[%emt 0:00:45]} Qe2+ $2 {[%emt 0:03:30]} ({Better is} 56... d3 $19 {( -> ...d2)} 57. c5 bxc5) 57. Kh4 $2 {[%emt 0:00:45][%mdl 8192]} (57. Kg5 $11 d3 58. Qf5) 57... d3 {[%emt 0:00:27]} 58. c5 {[%emt 0:00:53]} bxc5 {[%emt 0:00:56]} 59. Qa6 {[%emt 0:00:08]} Qh2+ {[%emt 0:00:24]} 60. Kg4 {[%emt 0:00:05]} d2 $2 {[%emt 0:01:10]} (60... Qf2 $19 {Threatens to win with ...d2.} 61. Qa8 Qd4 62. Qxa5+ Kb8 63. Qb5+ Rb7) 61. Qxa5+ {[%emt 0:00:32][%mdl 8192]} (61. Qa7+ $11 Kd6 62. Qb8+ Kd5 63. Qg8+ Kd4 64. Qc4+ Ke5 65. Qxc5+ Rd5 66. Qe7+ Kd4 67. Qxg7+ Re5 68. Qd7+ Rd5 69. Qg7+ Re5 70. Qd7+ Rd5 71. Qg7+) 61... Kc6 $2 {[%emt 0:00:30]} (61... Kd6 {mates} 62. Qxd2+ Qxd2 63. Kh3 e3 64. h6 gxh6 65. Rg8 e2 66. Rg6+ Ke5 67. Rg8 Rd3+ 68. Kh4 Qf4+ 69. Kh5 Qf5+ 70. Kxh6 Rh3+ 71. Kg7 Rh7#) 62. Qb5+ $11 {[%emt 0:00:44]} Kd6 {[%emt 0:00:13] Dancing on a razor blade.} 63. Qb6+ $2 {[%emt 0:01:35][%mdl 8192]} (63. Qb8+ $11 Ke6 64. Qe8+ Kd6 65. Qf8+ Kd5 66. Qg8+ Ke5 67. Qe8+ Kd6 68. Qf8+ Ke6 69. Qf5+ Ke7 70. Qe5+ Kd8 71. Qb8+ Ke7 72. Qe5+ Kf7 73. Qf5+ Ke8 74. Qxe4+ Kd8 75. Qa8+ Kc7 76. Qa7+ Kc8 77. Qxc5+ Kb8 78. Qe5+ Rc7 79. Qe8+ (79. Qb5+ Rb7 $11) 79... Ka7 80. Qe3+ Kb8 81. Qe8+ Ka7 82. Qe3+ Kb8 83. Qe8+) 63... Kd5 {[%emt 0:00:10] Weighted Error Value: White=1.13/Black=0.60} 0-1

[Event "34th GER-ch Seniors-50 2022"]
[Site "Magdeburg"]
[Date "2022.08.14"]
[Round "3.7"]
[White "Pirrot, Dieter"]
[Black "Roettinger, Eugen"]
[Result "1-0"]
[ECO "B12"]
[WhiteElo "2328"]
[BlackElo "2035"]
[Annotator "TA"]
[PlyCount "39"]
[EventDate "2022.08.12"]
[EventType "swiss"]
[EventCountry "GER"]
[SourceTitle "playchess.com"]
[Source "ChessBase"]
[SourceQuality "1"]
[TimeControl "40/5400+30:1800+30"]

{[%evp 9,39,-19,-27,-18,-33,-34,31,39,39,54,133,131,127,77,86,8,0,25,153,95,179,188,173,161,202,186,202,194,298,284,502,214]} 1. e4 {[%emt 0:00:02]} c6 {[%emt 0:00:20]} 2. d4 {[%emt 0:00:14]} d5 {[%emt 0:00:05]} 3. f3 {[%emt 0:00:13]} e6 {[%emt 0:01:23]} 4. Nc3 {[%emt 0:01:00]} Bb4 {[%emt 0:01:32]} 5. a3 {[%emt 0:00:24]} Bxc3+ {[%emt 0:00:23]} 6. bxc3 {[%emt 0:00:08] B12: Caro-Kann: Advance Variation.} dxe4 {[%emt 0:00:01][%cal Oc6c5]} 7. Nh3 {[%emt 0:04:39]} exf3 {[%emt 0:02:18]} (7... Qa5 $15) 8. Qxf3 $14 {[%emt 0:00:12] [#] White is slightly better.} Qd5 $146 {[%emt 0:00:25]} ({Predecessor:} 8... Nf6 9. Bd3 Nbd7 10. O-O h6 11. Nf4 Qe7 12. a4 Nb6 13. Ba3 Qc7 14. Nh5 Nxh5 15. Qxh5 {1-0 (40) Srdanovic,J (2070)-Ooi,Z (2123) Chess.com INT 2020}) 9. Qg4 {[%emt 0:07:32][%mdl 1024] White has compensation.} g6 {[%emt 0:03:46] [#]} (9... Ne7 $14) 10. Bd3 $1 $16 {[%emt 0:02:59]} Ne7 {[%emt 0:10:18]} 11. O-O {[%emt 0:06:44]} (11. Qe2 $142) 11... e5 {[%emt 0:33:09]} 12. Qe2 {[%emt 0:01:33] White is more active.} (12. Qh4 $16) 12... Bxh3 $11 {[%emt 0:00:39]} 13. gxh3 {[%emt 0:00:55]} f5 {[%emt 0:01:32]} (13... Qe6 $1 $11 {remains equal.}) 14. Rb1 {[%emt 0:06:10]} (14. Qxe5 Qxe5 15. dxe5 Nd7 $11) (14. Bc4 $142 Qa5 15. Rb1 (15. Qxe5 Qxe5 16. dxe5 Nd7 $11) (15. dxe5 Nd5 $14)) 14... b6 {[%emt 0:04:02]} (14... Qe6 $16) 15. Bc4 $36 {[%emt 0:10:39][%mdl 2048] White is really pushing.} ({Inferior is} 15. dxe5 Qe6 $11) ({Worse is} 15. Qxe5 Qxe5 16. dxe5 Nd7 $11) 15... Qa5 {[%emt 0:00:39]} 16. dxe5 {[%emt 0:10:01][%cal Bd4e5,Be5e6,Be6d7][%mdl 32] And now Rd1 would win.} ({Stronger than} 16. Qxe5 Qxe5 17. dxe5 Nd7 $11) 16... Nd7 {[%emt 0:02:46] [#]} 17. Bf7+ $1 {[%emt 0:15:46][%mdl 512]} Kxf7 {[%emt 0:07:23]} 18. e6+ {[%emt 0:00:07]} Kf6 {[%emt 0:00:08]} (18... Ke8 {keeps fighting.} 19. exd7+ Kxd7) 19. exd7 {[%emt 0:00:18] Dancing on a razor blade.} Nd5 $2 {[%emt 0:00:25]} (19... Kf7 {was called for.} 20. c4 Qc5+ 21. Be3 Qe5) 20. c4 {[%emt 0:07:25] Weighted Error Value: White=0.18 (very precise) /Black=0.59} (20. Kh1 $142 Rhd8 21. Re1) 1-0